fUST/lending_fUST_20240503
["ID","MTS","AMOUNT","RATE_DAILY","PERIOD"]
[325266059,1714672245526,-500.0,0.00041917,7]
[325266060,1714672245535,-500.0,0.00041917,7]
[325266061,1714672245545,-337.60044881,0.00041917,7]
[325266062,1714672245555,-495.0,0.00041917,7]
[325266063,1714672245564,-497.09995911,0.00041917,7]
[325266064,1714672245573,-570.16374308,0.00041917,7]
[325266065,1714672245582,-637.57,0.00041917,7]
[325266066,1714672245591,-500.0,0.00041917,7]
[325266067,1714672245600,-724.69,0.00041917,7]
[325266068,1714672245609,-492.47145015,0.00041917,7]
[325266069,1714672245619,-298.73,0.00041917,7]
[325266070,1714672245628,-500.0,0.00041917,7]
[325266071,1714672245638,-674.11,0.00041917,7]
[325266072,1714672245647,-500.0,0.00041917,7]
[325266073,1714672245656,-243.99,0.00041917,7]
[325266074,1714672245665,-500.0,0.00041917,7]
[325266075,1714672245675,-500.0,0.00041917,7]
[325266077,1714672245689,-500.0,0.00041917,7]
[325266078,1714672245698,-530.94,0.00041917,7]
[325266079,1714672245707,-500.0,0.00041917,7]
[325266080,1714672245718,-500.0,0.00041917,7]
[325266081,1714672245729,-500.0,0.00041917,2]
[325266082,1714672245739,-484.79,0.00041917,7]
[325266083,1714672245748,-500.0,0.00041917,2]
[325266084,1714672245757,-298.46660311,0.00041917,7]
[325266085,1714672245767,-500.0,0.00041917,7]
[325266086,1714672245776,-500.0,0.00041917,7]
[325266087,1714672245786,-500.0,0.00041917,7]
[325266088,1714672245795,-500.0,0.00041917,7]
[325266090,1714672245804,-504.77371144,0.00041917,7]
[325266091,1714672245814,-500.0,0.00041917,7]
[325266092,1714672245823,-500.0,0.00041917,7]
[325266093,1714672245832,-500.0,0.00041917,7]
[325266094,1714672245841,-500.0,0.00041917,7]
[325266095,1714672245850,-500.0,0.00041917,7]
[325266096,1714672245859,-500.0,0.00041917,7]
[325266097,1714672245868,-184.33,0.00041917,7]
[325266098,1714672245877,-500.0,0.00041917,7]
[325266099,1714672245886,-374.44,0.00041917,7]
[325266100,1714672245895,-1255.69,0.00041917,7]
[325266101,1714672245904,-500.0,0.00041917,7]
[325266102,1714672245912,-803.56,0.00041917,7]
[325266103,1714672245921,-37384.73,0.00041917,7]
[325266104,1714672245930,-500.0,0.00041917,7]
[325266105,1714672245939,-506.84429363,0.00041917,7]
[325266106,1714672245948,-500.0,0.00041917,7]
[325266107,1714672245957,-980.13,0.00041917,7]
[325266108,1714672245966,-13866.75,0.00041917,7]
[325266109,1714672245975,-151.0,0.00041917,7]
[325266110,1714672245984,-151.0,0.00041917,7]
[325266111,1714672245993,-500.0,0.00041917,7]
[325266112,1714672246002,-565.12,0.00041917,7]
[325266113,1714672246011,-500.0,0.00041917,7]
[325266114,1714672246021,-500.0,0.00041917,7]
[325266115,1714672246029,-1610.08,0.00041917,7]
[325266116,1714672246038,-151.0,0.00041917,7]
[325266117,1714672246133,-151.0,0.00041917,7]
[325266118,1714672246144,-506.0644216,0.00041917,7]
[325266119,1714672246153,-768.73,0.00041917,7]
[325266120,1714672246162,-2208.45,0.00041917,7]
[325266121,1714672246172,-794.48884,0.00041917,7]
[325266122,1714672246181,-794.48884,0.00041917,7]
[325266123,1714672246190,-500.0,0.00041917,7]
[325266124,1714672246200,-794.48884,0.00041917,7]
[325266125,1714672246209,-794.48884,0.00041917,7]
[325266126,1714672246218,-500.0,0.00041917,7]
[325266127,1714672246227,-500.0,0.00041917,7]
[325266128,1714672246236,-1435.94,0.00041917,7]
[325266129,1714672246245,-500.0,0.00041917,7]
[325266130,1714672246255,-500.0,0.00041917,7]
[325266131,1714672246264,-151.0,0.00041917,7]
[325266132,1714672246273,-151.0,0.00041917,7]
[325266133,1714672246282,-693.47,0.00041917,7]
[325266134,1714672246291,-500.0,0.00041917,7]
[325266135,1714672246300,-697.73,0.00041917,7]
[325266136,1714672246310,-500.0,0.00041917,7]
[325266137,1714672246319,-500.0,0.00041917,7]
[325266138,1714672246327,-500.0,0.00041917,7]
[325266139,1714672246336,-721.36,0.00041917,2]
[325266140,1714672246345,-511.7350542,0.00041917,7]
[325266141,1714672246355,-500.0,0.00041917,7]
[325266142,1714672246364,-1250.01,0.00041917,7]
[325266143,1714672246373,-754.38,0.00041917,7]
[325266144,1714672246383,-581.48,0.00041917,7]
[325266145,1714672246392,-500.0,0.00041917,7]
[325266146,1714672246401,-500.0,0.00041917,7]
[325266147,1714672246410,-500.0,0.00041917,7]
[325266148,1714672246419,-500.0,0.00041917,7]
[325266149,1714672246428,-500.0,0.00041917,7]
[325266150,1714672246437,-627.37,0.00041917,7]
[325266151,1714672246446,-500.0,0.00041917,7]
[325266152,1714672246455,-500.0,0.00041917,7]
[325266153,1714672246464,-500.0,0.00041917,7]
[325266154,1714672246473,-500.0,0.00041917,7]
[325266155,1714672246482,-500.0,0.00041917,7]
[325266156,1714672246491,-500.0,0.00041917,7]
[325266157,1714672246501,-2160.13,0.00041917,7]
[325266158,1714672246511,-556.27,0.00041917,7]
[325266159,1714672246520,-500.0,0.00041917,2]
[325266160,1714672246530,-500.0,0.00041917,7]
[325266161,1714672246539,-500.0,0.00041917,7]
[325266162,1714672246548,-500.0,0.00041917,7]
[325266163,1714672246558,-625.61,0.00041917,7]
[325266164,1714672246566,-345.83230637,0.00041917,7]
[325266165,1714672246581,-154.16769363,0.00041917,7]
[325266166,1714672246590,-151.0,0.00041917,7]
[325266167,1714672246599,-500.0,0.00041917,7]
[325266168,1714672246609,-151.0,0.00041917,7]
[325266169,1714672246619,-500.0,0.00041917,7]
[325266170,1714672246630,-500.0,0.00041917,7]
[325266171,1714672246640,-500.0,0.00041917,7]
[325266172,1714672246650,-500.0,0.00041917,7]
[325266173,1714672246661,-500.0,0.00041917,7]
[325266174,1714672246670,-500.0,0.00041917,7]
[325266175,1714672246681,-723.37,0.00041917,7]
[325266176,1714672246690,-1110.07,0.00041917,7]
[325266177,1714672246702,-500.0,0.00041917,7]
[325266178,1714672246711,-500.0,0.00041917,7]
[325266179,1714672246722,-178.62013,0.00041917,7]
[325266180,1714672246732,-178.62013,0.00041917,7]
[325266181,1714672246741,-511.01501561,0.00041917,7]
[325266182,1714672246750,-500.0,0.00041917,7]
[325266183,1714672246759,-178.62013,0.00041917,7]
[325266184,1714672246770,-178.62013,0.00041917,7]
[325266185,1714672246779,-500.0,0.00041917,7]
[325266186,1714672246788,-500.0,0.00041917,7]
[325266187,1714672246798,-500.0,0.00041917,7]
[325266188,1714672246808,-500.0,0.00041917,7]
[325266189,1714672246817,-500.0,0.00041917,7]
[325266190,1714672246826,-1055.65,0.00041917,7]
[325266191,1714672246835,-500.0,0.00041917,7]
[325266192,1714672246845,-500.0,0.00041917,7]
[325266193,1714672246854,-194.793486,0.00041917,7]
[325266194,1714672246864,-194.793486,0.00041917,7]
[325266195,1714672246874,-500.0,0.00041917,2]
[325266196,1714672246884,-194.793486,0.00041917,7]
[325266197,1714672246893,-194.793486,0.00041917,7]
[325266198,1714672246903,-213.258865,0.00041917,7]
[325266199,1714672246912,-500.0,0.00041917,7]
[325266200,1714672246922,-870.39,0.00041917,7]
[325266201,1714672246931,-5000.0,0.00042,4]
[325266202,1714672246940,-150.0,0.00042094,60]
[325266203,1714672246949,-721.52976241,0.000421,30]
[325266204,1714672246958,-166.5,0.00042102,14]
[325266205,1714672246967,-500.0,0.0004218,2]
[325266206,1714672246976,-500.0,0.0004218,2]
[325266207,1714672246987,-233.6347337,0.0004218,2]
[325266208,1714672246997,-500.0,0.0004218,2]
[325266209,1714672247006,-500.0,0.0004218,2]
[325266210,1714672247016,-500.0,0.0004218,2]
[325266211,1714672247025,-500.0,0.0004218,2]
[325266212,1714672247035,-607.80539417,0.0004218,2]
[325266213,1714672247044,-500.0,0.00042191,7]
[325266214,1714672247054,-500.0,0.00042191,7]
[325266215,1714672247063,-167.1448437,0.00042191,7]
[325266216,1714672247072,-500.0,0.00042191,7]
[325266217,1714672247081,-500.0,0.00042191,7]
[325266218,1714672247090,-500.0,0.00042191,7]
[325266219,1714672247099,-500.0,0.00042191,7]
[325266220,1714672247108,-532.19000001,0.00042191,7]
[325266221,1714672247117,-500.0,0.00042191,7]
[325266222,1714672247126,-548.91197443,0.00042191,7]
[325266223,1714672247135,-500.0,0.00042191,7]
[325266224,1714672247144,-500.0,0.00042191,7]
[325266225,1714672247153,-500.0,0.00042191,7]
[325266226,1714672247163,-500.0,0.00042191,7]
[325266227,1714672247172,-500.0,0.00042191,7]
[325266228,1714672247181,-637.57,0.00042191,7]
[325266229,1714672247191,-500.0,0.00042191,7]
[325266230,1714672247200,-724.69,0.00042191,7]
[325266231,1714672247209,-500.0,0.00042191,7]
[325266232,1714672247219,-674.11,0.00042191,7]
[325266233,1714672247228,-500.0,0.00042191,7]
[325266234,1714672247238,-500.0,0.00042191,7]
[325266235,1714672247249,-500.0,0.00042191,7]
[325266236,1714672247258,-500.0,0.00042191,7]
[325266237,1714672247268,-500.0,0.00042191,7]
[325266238,1714672247278,-500.0,0.00042191,2]
[325266239,1714672247287,-505.38138098,0.00042191,7]
[325266240,1714672247296,-330.89623418,0.00042191,7]
[325266241,1714672247305,-366.82106429,0.00042191,7]
[325266242,1714672247314,-500.0,0.00042191,7]
[325266243,1714672247323,-500.0,0.00042191,7]
[325266244,1714672247332,-516.48551001,0.00042191,7]
[325266245,1714672247341,-500.0,0.00042191,7]
[325266246,1714672247350,-503.51101643,0.00042191,7]
[325266247,1714672247359,-500.0,0.00042191,7]
[325266248,1714672247368,-500.0,0.00042191,7]
[325266249,1714672247377,-500.0,0.00042191,7]
[325266250,1714672247387,-1255.69,0.00042191,7]
[325266251,1714672247396,-500.0,0.00042191,7]
[325266252,1714672247405,-803.56,0.00042191,7]
[325266253,1714672247415,-33568.11974974,0.00042191,7]
[325266254,1714672247591,-500.0,0.00041095,7]
[325266255,1714672247600,-500.0,0.00041095,7]
[325266256,1714672247610,-500.0,0.00041095,7]
[325266257,1714672247620,-558.43135868,0.00041369,7]
[325266258,1714672247630,-539.84897338,0.00041369,7]
[325266259,1714672247639,-500.0,0.00041369,7]
[325266260,1714672247648,-500.0,0.00041369,7]
[325266261,1714672247658,-213.258865,0.00041643,7]
[325266262,1714672247667,-500.0,0.00041643,7]
[325266263,1714672247678,-213.258865,0.00041917,7]
[325266264,1714672247692,-500.0,0.00041917,7]
[325266265,1714672247702,-3816.61025026,0.00042191,7]
[325266266,1714672247711,-500.0,0.00042191,7]
[325266267,1714672247723,-500.0,0.00042191,7]
[325266268,1714672247733,-980.13,0.00042191,7]
[325266269,1714672247742,-13866.75,0.00042191,7]
[325266270,1714672247751,-211.842976,0.00042191,7]
[325266271,1714672247761,-504.7752951,0.00042191,7]
[325266272,1714672247770,-500.0,0.00042191,7]
[325266273,1714672247779,-500.0,0.00042191,7]
[325266274,1714672247789,-1610.08,0.00042191,7]
[325266275,1714672247798,-151.0,0.00042191,7]
[325266276,1714672247807,-768.73,0.00042191,7]
[325266277,1714672247817,-2208.45,0.00042191,7]
[325266278,1714672247827,-794.48884,0.00042191,7]
[325266279,1714672247836,-500.0,0.00042191,7]
[325266280,1714672247846,-794.48884,0.00042191,7]
[325266281,1714672247855,-500.0,0.00042191,7]
[325266282,1714672247864,-500.0,0.00042191,7]
[325266283,1714672247873,-1435.94,0.00042191,7]
[325266284,1714672247882,-500.0,0.00042191,7]
[325266285,1714672247891,-500.0,0.00042191,7]
[325266286,1714672247900,-151.0,0.00042191,7]
[325266287,1714672247909,-693.47,0.00042191,7]
[325266288,1714672247918,-500.0,0.00042191,7]
[325266289,1714672247927,-697.73,0.00042191,7]
[325266290,1714672247937,-500.0,0.00042191,7]
[325266291,1714672247946,-495.50858682,0.00042191,7]
[325266292,1714672247955,-500.0,0.00042191,7]
[325266293,1714672247964,-721.36,0.00042191,2]
[325266294,1714672247973,-500.0,0.00042191,7]
[325266295,1714672247983,-1250.01,0.00042191,7]
[325266296,1714672247992,-754.38,0.00042191,7]
[325266297,1714672248001,-581.48,0.00042191,7]
[325266298,1714672248077,-500.0,0.00042191,7]
[325266299,1714672248097,-500.0,0.00042191,7]
[325266300,1714672248106,-500.0,0.00042191,7]
[325266301,1714672248115,-500.0,0.00042191,7]
[325266302,1714672248125,-500.0,0.00042191,7]
[325266303,1714672248134,-627.37,0.00042191,7]
[325266304,1714672248143,-500.0,0.00042191,7]
[325266305,1714672248152,-500.0,0.00042191,7]
[325266306,1714672248161,-500.0,0.00042191,7]
[325266307,1714672248170,-500.0,0.00042191,7]
[325266308,1714672248179,-500.0,0.00042191,7]
[325266309,1714672248188,-500.0,0.00042191,7]
[325266310,1714672248196,-2160.13,0.00042191,7]
[325266311,1714672248205,-556.27,0.00042191,7]
[325266312,1714672248214,-500.0,0.00042191,2]
[325266313,1714672248223,-500.0,0.00042191,7]
[325266314,1714672248232,-500.0,0.00042191,7]
[325266315,1714672248241,-625.61,0.00042191,7]
[325266316,1714672248250,-500.0,0.00042191,7]
[325266317,1714672248259,-151.0,0.00042191,7]
[325266318,1714672248269,-500.0,0.00042191,7]
[325266319,1714672248278,-500.0,0.00042191,7]
[325266320,1714672248287,-500.0,0.00042191,7]
[325266321,1714672248299,-500.0,0.00042191,7]
[325266322,1714672248309,-500.0,0.00042191,7]
[325266323,1714672248318,-500.0,0.00042191,7]
[325266324,1714672248327,-723.37,0.00042191,7]
[325266325,1714672248336,-1110.07,0.00042191,7]
[325266326,1714672248345,-500.0,0.00042191,7]
[325266327,1714672248354,-500.0,0.00042191,7]
[325266328,1714672248363,-178.62013,0.00042191,7]
[325266329,1714672248372,-500.0,0.00042191,7]
[325266330,1714672248381,-178.62013,0.00042191,7]
[325266331,1714672248390,-500.0,0.00042191,7]
[325266332,1714672248399,-500.0,0.00042191,7]
[325266333,1714672248408,-500.0,0.00042191,7]
[325266334,1714672248417,-500.0,0.00042191,7]
[325266335,1714672248426,-1055.65,0.00042191,7]
[325266336,1714672248435,-500.0,0.00042191,7]
[325266337,1714672248444,-194.793486,0.00042191,7]
[325266338,1714672248453,-500.0,0.00042191,2]
[325266339,1714672248462,-194.793486,0.00042191,7]
[325266340,1714672248471,-213.258865,0.00042191,7]
[325266341,1714672248479,-213.258865,0.00042191,7]
[325266342,1714672248489,-500.0,0.00042191,7]
[325266343,1714672248498,-870.39,0.00042191,7]
[325266344,1714672248506,-213.258865,0.00042191,7]
[325266345,1714672248515,-213.258865,0.00042191,7]
[325266346,1714672248525,-155.46141073,0.0004234,10]
[325266347,1714672248534,-503.53714487,0.00042465,7]
[325266348,1714672248543,-500.0,0.00042465,7]
[325266349,1714672248552,-500.0,0.00042465,7]
[325266350,1714672248564,-500.0,0.00042465,7]
[325266351,1714672248574,-500.0,0.00042465,7]
[325266352,1714672248583,-500.0,0.00042465,7]
[325266353,1714672248592,-500.0,0.00042465,7]
[325266354,1714672248601,-500.0,0.00042465,7]
[325266355,1714672248610,-500.0,0.00042465,7]
[325266356,1714672248619,-500.0,0.00042465,7]
[325266357,1714672248628,-475.67807359,0.00042465,7]
[325266358,1714672248637,-637.57,0.00042465,7]
[325266359,1714672248647,-724.69,0.00042465,7]
[325266360,1714672248656,-500.0,0.00042465,7]
[325266361,1714672248665,-674.11,0.00042465,7]
[325266362,1714672248674,-500.0,0.00042465,7]
[325266363,1714672248685,-500.0,0.00042465,7]
[325266364,1714672248694,-500.0,0.00042465,7]
[325266365,1714672248707,-500.0,0.00042465,7]
[325266366,1714672248716,-500.0,0.00042465,7]
[325266367,1714672248728,-500.0,0.00042465,2]
[325266368,1714672248737,-500.0,0.00042465,7]
[325266369,1714672248746,-505.90168995,0.00042465,7]
[325266370,1714672248755,-500.0,0.00042465,7]
[325266371,1714672248764,-185.27,0.00042465,7]
[325266372,1714672248776,-506.2019949,0.00042465,7]
[325266373,1714672248785,-1255.69,0.00042465,7]
[325266374,1714672248794,-500.0,0.00042465,7]
[325266375,1714672248804,-803.56,0.00042465,7]
[325266376,1714672248819,-1371.83091922,0.00042465,7]
[325266377,1714672248972,-2000.0,0.00022,2]
[325266378,1714672248982,-540.87731046,0.00041094,4]
[325266379,1714672301293,154.65974855,9.999e-05,2]
[325266380,1714673228164,-169.239922,0.00028493,2]
[325266381,1714673228186,-165.517154,0.00028493,2]
[325266382,1714673228205,-9130.36775857,0.0002877,2]
[325266383,1714673228226,-150.0,0.00029727,3]
[325266384,1714673228247,-150.0,0.00031831,3]
[325266385,1714673228268,-150.0,0.00033936,5]
[325266386,1714673228288,-186.976829,0.00035616,120]
[325266387,1714673228310,-150.0,0.0003604,7]
[325266388,1714673228330,-150.0,0.00038145,14]
[325266389,1714673228350,-169.239922,0.00038356,2]
[325266390,1714673228370,-2729.9056,0.0004,4]
[325266391,1714673228390,-150.0,0.00040091,2]
[325266392,1714673228410,-493.0,0.00040166,2]
[325266393,1714673228430,-150.0,0.00040166,2]
[325266394,1714673228451,-150.0,0.00040249,14]
[325266395,1714673228471,-151.03064227,0.00040995,2]
[325266396,1714673228492,-1987.99,0.00041085,3]
[325266397,1714673228512,-1656.66,0.00041085,3]
[325266398,1714673228532,-1380.55,0.00041085,3]
[325266399,1714673228554,-2000.0,0.00041094,2]
[325266400,1714673228577,-539.3861531,0.00041095,7]
[325266401,1714673228597,-500.0,0.00041095,7]
[325266402,1714673228618,-500.0,0.00041095,7]
[325266403,1714673228639,-500.0,0.00041095,7]
[325266404,1714673228658,-500.0,0.00041095,7]
[325266405,1714673228678,-500.0,0.00041095,7]
[325266406,1714673228697,-501.00267243,0.00041095,7]
[325266407,1714673228717,-361.94342043,0.00041095,7]
[325266408,1714673228737,-532.49854879,0.00041095,7]
[325266409,1714673228757,-500.0,0.00041095,7]
[325266410,1714673228776,-500.0,0.00041095,7]
[325266411,1714673228798,-500.0,0.00041095,7]
[325266412,1714673228818,-500.0,0.00041095,7]
[325266413,1714673228836,-500.0,0.00041095,7]
[325266414,1714673228856,-500.0,0.00041095,7]
[325266415,1714673228876,-151.0,0.00041095,7]
[325266416,1714673228895,-500.0,0.00041095,7]
[325266417,1714673228913,-500.0,0.00041095,7]
[325266418,1714673228933,-500.0,0.00041095,7]
[325266419,1714673228952,-500.0,0.00041095,7]
[325266420,1714673228974,-500.0,0.00041095,7]
[325266421,1714673228993,-500.0,0.00041095,7]
[325266422,1714673229013,-500.0,0.00041095,7]
[325266423,1714673229033,-500.0,0.00041095,7]
[325266424,1714673229056,-454.16844418,0.00041095,7]
[325266425,1714673229078,-500.0,0.00041095,7]
[325266426,1714673229097,-500.0,0.00041095,7]
[325266427,1714673229116,-500.0,0.00041095,7]
[325266428,1714673229137,-500.0,0.00041095,7]
[325266429,1714673229249,-500.0,0.00041095,7]
[325266430,1714673229268,-500.0,0.00041095,30]
[325266431,1714673229287,-500.0,0.00041095,7]
[325266432,1714673229308,-500.0,0.00041095,7]
[325266433,1714673229327,-500.0,0.00041095,7]
[325266434,1714673229346,-500.0,0.00041095,7]
[325266435,1714673229365,-500.0,0.00041095,7]
[325266436,1714673229384,-500.0,0.00041095,7]
[325266437,1714673229403,-500.0,0.00041095,7]
[325266438,1714673229422,-500.0,0.00041095,7]
[325266439,1714673229441,-500.0,0.00041095,7]
[325266440,1714673229461,-500.0,0.00041095,7]
[325266441,1714673229480,-500.0,0.00041095,7]
[325266442,1714673229500,-500.0,0.00041095,7]
[325266443,1714673229521,-500.0,0.00041095,7]
[325266444,1714673229539,-500.0,0.00041095,7]
[325266445,1714673229560,-500.0,0.00041095,7]
[325266446,1714673229579,-500.0,0.00041095,7]
[325266447,1714673229598,-500.0,0.00041095,7]
[325266448,1714673229618,-500.0,0.00041095,7]
[325266449,1714673229637,-500.0,0.00041095,7]
[325266450,1714673229657,-500.0,0.00041095,7]
[325266451,1714673229676,-519.85,0.00041095,7]
[325266452,1714673229695,-500.0,0.00041095,7]
[325266453,1714673229717,-500.0,0.00041095,7]
[325266454,1714673229737,-585.54379156,0.00041095,7]
[325266455,1714673229756,-500.0,0.00041095,7]
[325266456,1714673229776,-500.0,0.00041095,7]
[325266457,1714673229797,-500.0,0.00041095,7]
[325266458,1714673229817,-500.0,0.00041095,7]
[325266459,1714673229838,-500.0,0.00041095,7]
[325266460,1714673229857,-500.0,0.00041095,7]
[325266461,1714673229877,-500.0,0.00041095,7]
[325266462,1714673229896,-501.08847708,0.00041095,7]
[325266463,1714673229916,-500.53372216,0.00041095,7]
[325266464,1714673229935,-500.0,0.00041095,7]
[325266465,1714673229954,-239.91334862,0.00041095,7]
[325266466,1714673229976,-503.56961163,0.00041095,7]
[325266467,1714673229995,-500.0,0.00041095,7]
[325266468,1714673230015,-500.0,0.00041095,7]
[325266469,1714673230035,-500.0,0.00041095,7]
[325266470,1714673230056,-502.69942728,0.00041095,7]
[325266471,1714673230079,-500.0,0.00041095,7]
[325266472,1714673230104,-500.0,0.00041095,7]
[325266473,1714673230125,-500.0,0.00041095,7]
[325266474,1714673230147,-500.0,0.00041095,7]
[325266475,1714673230170,-562.06857897,0.00041095,7]
[325266476,1714673230191,-500.0,0.00041095,7]
[325266477,1714673230212,-500.0,0.00041095,7]
[325266478,1714673230235,-500.0,0.00041095,7]
[325266479,1714673230255,-501.0660446,0.00041095,7]
[325266480,1714673230275,-500.0,0.00041095,7]
[325266481,1714673230294,-500.0,0.00041095,7]
[325266482,1714673230314,-500.0,0.00041095,7]
[325266483,1714673230335,-500.0,0.00041095,7]
[325266484,1714673230355,-500.0,0.00041095,7]
[325266485,1714673230375,-500.0,0.00041095,7]
[325266486,1714673230396,-500.0,0.00041095,7]
[325266487,1714673230417,-500.0,0.00041095,7]
[325266488,1714673230436,-500.0,0.00041095,7]
[325266489,1714673230455,-500.0,0.00041095,7]
[325266490,1714673230475,-500.0,0.00041095,7]
[325266491,1714673230496,-500.0,0.00041095,7]
[325266492,1714673230517,-500.0,0.00041095,7]
[325266493,1714673230536,-500.0,0.00041095,7]
[325266494,1714673230557,-500.0,0.00041095,7]
[325266495,1714673230579,-500.0,0.00041095,7]
[325266496,1714673230599,-500.0,0.00041095,7]
[325266497,1714673230621,-500.0,0.00041095,7]
[325266498,1714673230642,-500.0,0.00041095,7]
[325266499,1714673230663,-500.0,0.00041095,7]
[325266500,1714673230683,-500.0,0.00041095,7]
[325266501,1714673230702,-500.0,0.00041095,7]
[325266502,1714673230722,-500.0,0.00041095,7]
[325266503,1714673230742,-597.10197168,0.00041095,7]
[325266504,1714673230762,-500.0,0.00041095,7]
[325266505,1714673230781,-500.0,0.00041095,7]
[325266506,1714673230802,-500.0,0.00041095,7]
[325266507,1714673230822,-500.0,0.00041095,7]
[325266508,1714673230842,-500.0,0.00041095,7]
[325266509,1714673230862,-800.0,0.00041095,120]
[325266510,1714673230882,-500.0,0.00041095,7]
[325266511,1714673230903,-500.0,0.00041095,7]
[325266512,1714673230923,-500.0,0.00041095,7]
[325266513,1714673230944,-500.0,0.00041095,7]
[325266514,1714673230965,-500.0,0.00041095,7]
[325266515,1714673230988,-500.0,0.00041095,7]
[325266516,1714673231010,-500.0,0.00041095,7]
[325266517,1714673231032,-500.0,0.00041095,7]
[325266518,1714673231062,-500.0,0.00041095,7]
[325266519,1714673231085,-500.0,0.00041095,7]
[325266520,1714673231105,-500.0,0.00041095,7]
[325266521,1714673231127,-500.0,0.00041095,7]
[325266522,1714673231148,-501.35121444,0.00041095,7]
[325266523,1714673231255,-500.0,0.00041095,7]
[325266524,1714673231276,-500.0,0.00041095,7]
[325266525,1714673231298,-500.0,0.00041095,7]
[325266526,1714673231319,-500.0,0.00041095,7]
[325266527,1714673231339,-500.0,0.00041095,7]
[325266528,1714673231360,-500.0,0.00041095,7]
[325266529,1714673231380,-500.0,0.00041095,7]
[325266530,1714673231401,-552.37,0.00041095,7]
[325266531,1714673231421,-500.0,0.00041095,7]
[325266532,1714673231442,-500.0,0.00041095,7]
[325266533,1714673231462,-500.0,0.00041095,7]
[325266534,1714673231482,-500.0,0.00041095,7]
[325266535,1714673231502,-504.60657867,0.00041095,7]
[325266536,1714673231522,-500.0,0.00041095,7]
[325266537,1714673231542,-500.30006974,0.00041095,7]
[325266538,1714673231562,-500.0,0.00041095,7]
[325266539,1714673231581,-688.95,0.00041095,2]
[325266540,1714673231601,-500.0,0.00041095,7]
[325266541,1714673231622,-516.54991185,0.00041095,7]
[325266542,1714673231642,-500.0,0.00041095,7]
[325266543,1714673231662,-500.0,0.00041095,7]
[325266544,1714673231682,-448.50081179,0.00041095,7]
[325266545,1714673231702,-500.0,0.00041095,7]
[325266546,1714673231722,-564.5,0.00041095,7]
[325266547,1714673231742,-500.0,0.00041095,7]
[325266548,1714673231764,-500.0,0.00041095,7]
[325266549,1714673231784,-500.0,0.00041095,7]
[325266550,1714673231806,-506.53406528,0.00041095,7]
[325266551,1714673231826,-1814.27,0.00041095,7]
[325266552,1714673231848,-722.22,0.00041095,7]
[325266553,1714673231869,-500.0,0.00041095,7]
[325266554,1714673231889,-500.0,0.00041095,7]
[325266555,1714673231910,-500.0,0.00041095,7]
[325266556,1714673231931,-500.0,0.00041095,7]
[325266557,1714673231951,-500.0,0.00041095,7]
[325266558,1714673231973,-500.0,0.00041095,7]
[325266559,1714673231995,-500.0,0.00041095,7]
[325266560,1714673232016,-283.71639104,0.00041095,7]